Cogmind - Beta 13 *** ADVENTURER MODE // 2024.03.31 @ 18:09:25 Player: DietSnapple Result: Destroyed by G-34 Mercenary with Small Laser Performance ------------- Evolutions (1) 500 Regions Visited (3) 600 Robots Destroyed (41) 205 Value Destroyed (1107) 1107 Prototype IDs (0) 0 Alien Tech Used (0) 0 Bonus (46) 46 TOTAL SCORE: 2458 Bonus ------- High Alert Combat Kills 46 Cogmind --------- Core Integrity 0/400 Matter 247/300 Energy 46/100 System Corruption 0% Temperature Cool (32) Movement Rolling (100) Location -9/Storage Parts ------- > --- POWER (1) -------- (None) > --- PROPULSION (3) --- Compact Wheel > --- UTILITY (3) ------ Small Storage Unit > --- WEAPON (2) ------- Beam Rifle > --- INVENTORY (8) ---- Improved Hover Unit Heat Sink High-capacity Battery (250) Grenade Launcher Peak State ------------ > --- POWER ------------ Light Ion Engine > --- PROPULSION ------- Compact Wheel Compact Wheel Compact Wheel > --- UTILITY ---------- Small Storage Unit Improved Light Armor Plating Improved Light Armor Plating > --- WEAPON ----------- Beam Rifle Beam Rifle > --- INVENTORY -------- Improved Hover Unit Heat Sink High-capacity Battery Improved Light Armor Plating Medium Laser Assault Rifle Grenade Launcher [Rating: 16] Favorites ----------- Power Light Ion Engine Engine Light Ion Engine Propulsion Compact Wheel Leg Aluminum Leg Wheel Compact Wheel Hover Unit Improved Hover Unit Utility Small Storage Unit Device Heat Sink Storage Small Storage Unit Processor Signal Interpreter Protection Improved Light Armor Plating Weapon Beam Rifle Energy Gun Beam Rifle Ballistic Gun Assault Rifle Launcher Grenade Launcher Build | -11 -10 -9 -9 ------- Run | Yrd Mat Mat Sto Slots Evolved 2 | . . 2 . Power . | . . . . Propulsion 1 | . . 1 . Utility 1 | . . 1 . Weapon . | . . . . Parts Attached 27 | 6 8 9 4 Power 3 | 1 1 1 . Engine 3 | 1 1 1 . Core . | . . . . Reactor . | . . . . Propulsion 8 | 2 2 4 . Treads . | . . . . Leg 2 | 2 . . . Wheel 3 | . . 3 . Hover 3 | . 2 1 . Flight . | . . . . Utility 8 | 1 1 4 2 Device 1 | . 1 . . Storage 2 | 1 . 1 . Processor 1 | . . 1 . Hackware . | . . . . Protection 4 | . . 2 2 Artifact . | . . . . Weapon 8 | 2 4 . 2 Energy Gun 4 | 1 2 . 1 Energy Cannon . | . . . . Ballistic Gun 2 | 1 . . 1 Ballistic Cannon . | . . . . Launcher 2 | . 2 . . Special Weapon . | . . . . Impact Weapon . | . . . . Slashing Weapon . | . . . . Piercing Weapon . | . . . . Special Melee Weapon . | . . . . Unidentified Prototypes . | . . . . Parts Lost 9 | . . 1 8 Power 2 | . . 1 1 Propulsion 2 | . . . 2 Utility 2 | . . . 2 Weapon 3 | . . . 3 Highest Loss Streak 4 | . . 1 4 To Critical Strikes . | . . . . Average Slot Usage (%) 87 | . 89 95 57 Engine 9 | . 14 8 2 Leg 9 | . 21 . . Wheel 12 | . . 22 20 Hover 6 | . 6 10 . Device 2 | . 5 . . Storage 13 | . 14 14 11 Processor 1 | . . 3 . Protection 7 | . . 14 9 Energy Gun 18 | . 16 22 13 Launcher 4 | . 9 . . Naked Turns . | . . . . Heaviest Build 20 | 11 14 20 18 Greatest Support 48 | 20 20 48 48 Greatest Overweight (x) 2 | . 2 . . Average Overweight (x) . | . . . . Largest Inventory Capacity 8 | 8 8 8 8 Average Capacity 7 | 6 8 8 8 Most Carried 8 | 5 8 8 8 Average Carried 6 | 3 6 7 7 Final Capacity 8 | 8 8 8 8 Final Carried 8 | 5 8 8 4 Class Distribution -------------------- 100% | Mutant Dominant Class ---------------- Mutant | -10/Materials Mutant | -9/Materials Mutant | -9/Storage Resources | -11 -10 -9 -9 ----------- Run | Yrd Mat Mat Sto Matter Collected 435 | 253 66 116 . Remotely . | . . . . Salvage Created 1343 | . 120 884 339 Parts 100 | . 14 65 21 Haulers Intercepted . | . . . . Recyclers Shooed . | . . . . Parts Field Recycled . | . . . . Retrieved Matter . | . . . . Parts Self-Destructed . | . . . . Prevented . | . . . . Kills | -11 -10 -9 -9 ------- Run | Yrd Mat Mat Sto Combat Hostiles Destroyed 34 | . 6 22 6 Guns 34 | . 6 22 6 Classes Destroyed 5 | . 3 2 . Worker 1 | . . 1 . Watcher 6 | . 2 3 1 Swarmer 12 | . 5 7 . Grunt 10 | . 1 9 . Sentry 12 | . . 6 6 Best Kill Streak 6 | . 2 6 4 Combat Bots Only 5 | . 2 5 4 Max Kills in Single Turn 2 | . 1 2 1 Gunslinging 1 | . . 1 . Exploded . | . . . . Melee . | . . . . Uniques/NPCs Destroyed . | . . . . Combat | -11 -10 -9 -9 -------- Run | Yrd Mat Mat Sto Hostile Shots Fired 244 | . 63 84 97 Missed 67 | . 20 22 25 Damage Taken 1670 | . 271 519 880 Core 473 | . 67 92 314 Absorbed by Shields . | . . . . Ignored by Resistances 508 | . 93 163 252 Regen/Repaired (Parts) 43 | . . 43 . Core Remaining (%) 86 | 100 73 . . Volleys Fired 126 | . 31 50 45 Largest 2 | . 2 2 2 Hottest 112 | . 112 112 86 Shots Fired 187 | . 33 100 54 Gun 186 | . 32 100 54 Cannon . | . . . . Launcher 1 | . 1 . . Special . | . . . . Kinetic 6 | . . . 6 Thermal 180 | . 32 100 48 Explosive 1 | . 1 . . Electromagnetic . | . . . . Robot Hit Streak 27 | . 12 14 27 Robot Miss Streak 4 | . 2 4 1 Penetration Max . | . . . . Secondary Targets 3 | . . 3 . Max Gunslinging Chain 1 | . . 1 . Shots Hit Robots 141 | . 25 70 46 Core Hits 63 | . 9 34 20 Critical Kills . | . . . . Critical Parts Destroyed . | . . . . Critical Strikes 7 | . . 6 1 Burn 7 | . . 6 1 Melee Attacks . | . . . . Impact . | . . . . Slashing . | . . . . Piercing . | . . . . Sneak Attacks . | . . . . Combat Hostiles . | . . . . Follow-up Attacks . | . . . . Damage Inflicted 1710 | . 294 950 466 Guns 1681 | . 265 950 466 Cannons . | . . . . Explosions 29 | . 29 . . Melee . | . . . . Ramming . | . . . . Kinetic 73 | . . . 73 Thermal 1608 | . 265 950 393 Explosive 29 | . 29 . . Electromagnetic . | . . . . Impact . | . . . . Slashing . | . . . . Piercing . | . . . . Highest Corruption . | . . . . Average Corruption . | . . . . Corruption Purged . | . . . . Corruption Blocked . | . . . . Overload Shots . | . . . . Overflow Damage . | . . . . Projectiles . | . . . . Explosions . | . . . . Melee . | . . . . Knockbacks . | . . . . Impact . | . . . . Kinetic . | . . . . Secondary . | . . . . Self-Inflicted Damage . | . . . . Shots . | . . . . Rammed . | . . . . Targets Rammed . | . . . . Kicked . | . . . . Crushed . | . . . . Highest Temperature 243 | . 59 243 63 Average Temperature 59 | . 18 69 17 Received Heat Transfer 648 | . 54 216 378 Siege Activations . | . . . . Robots Corrupted . | . . . . Combat Hostiles . | . . . . Parts Fried . | . . . . Impact Corruptions . | . . . . Robots Melted . | . . . . Combat Hostiles . | . . . . Parts Melted 11 | . 1 4 6 Heat Transferred 5089 | . 612 2960 1517 Parts Sabotaged . | . . . . Parts Stolen . | . . . . Parts Stripped . | . . . . Power Chain Reactions . | . . . . Alert | -11 -10 -9 -9 ------- Run | Yrd Mat Mat Sto Peak Influence 572 | . 156 572 412 Initial 205 | . . 55 205 Average 210 | . 68 353 330 Maximum Alert Level 2 | . . 2 2 Low Security (%) 52 | 100 100 15 . Level 1 30 | . . 51 75 Level 2 16 | . . 33 24 Level 3 . | . . . . Level 4 . | . . . . Level 5 . | . . . . High Security . | . . . . Max Security . | . . . . Squads Dispatched 5 | . . 5 . Investigation 2 | . . 2 . Extermination . | . . . . Reinforcement 3 | . . 3 . Assault . | . . . . Garrison . | . . . . Intercept . | . . . . Searches Triggered . | . . . . Construction Impeded . | . . . . Haulers Reinforced . | . . . . Active Scanning Responses . | . . . . Cargo Convoy Interrupts . | . . . . Stealth | -11 -10 -9 -9 --------- Run | Yrd Mat Mat Sto Distress Signals 2 | . 1 1 . Communications Jammed . | . . . . Distress Signals . | . . . . Times Spotted 51 | . 11 29 11 Peak Tracking Total 7 | . 3 7 4 Tactical Retreats 2 | . 1 . 1 Traps | -11 -10 -9 -9 ------- Run | Yrd Mat Mat Sto Traps Triggered 3 | . . 2 1 Indirectly . | . . . . Trap Hack Attempts . | . . . . Triggered . | . . . . Disarmed . | . . . . Reprogrammed . | . . . . Reused . | . . . . Traps Extracted . | . . . . Installed . | . . . . Triggered . | . . . . Machines | -11 -10 -9 -9 ---------- Run | Yrd Mat Mat Sto Machines Disabled 1 | . . 1 . Max in Single Turn 1 | . . 1 . Machines Repaired . | . . . . Machines Dismantled . | . . . . Machines Sabotaged . | . . . . Overloaded Fab Kills . | . . . . Hacking | -11 -10 -9 -9 --------- Run | Yrd Mat Mat Sto Machines Accessed 4 | . 2 2 . Terminals 2 | . 2 . . Fabricators . | . . . . Repair Stations 1 | . . 1 . Recycling Units 1 | . . 1 . Scanalyzers . | . . . . Garrison Access . | . . . . Total Hacks 11 | . 4 7 . Successful 10 | . 4 6 . Failed 1 | . . 1 . Catastrophic 1 | . . 1 . Database Lockouts . | . . . . Manual . | . . . . Terminals 4 | . 4 . . Fabricators . | . . . . Repair Stations 4 | . . 4 . Recycling Units 3 | . . 3 . Scanalyzers . | . . . . Garrison Access . | . . . . Terminal Hacks 4 | . 4 . . Record 1 | . 1 . . Alert Level 1 | . 1 . . Dispatch Records 1 | . 1 . . Registered Components 1 | . 1 . . Fabricator Hacks . | . . . . Repair Station Hacks 3 | . . 3 . Scan Component 1 | . . 1 . Repair 1 | . . 1 . Refit 1 | . . 1 . Recycling Unit Hacks 3 | . . 3 . Process 2 | . . 2 . Retrieve Matter 1 | . . 1 . Scanalyzer . | . . . . Garrison Access Hacks . | . . . . Unauthorized Hacks . | . . . . Terminals . | . . . . Fabricators . | . . . . Repair Stations . | . . . . Recycling Units . | . . . . Scanalyzers . | . . . . Garrison Access . | . . . . Data Cores Recovered . | . . . . Used . | . . . . Hacking Detections 2 | . 1 1 . Full Trace Events 1 | . . 1 . Feedback Events . | . . . . Feedback Blocked . | . . . . Robot Schematics Acquired . | . . . . Robots Built . | . . . . Authchips . | . . . . Time . | . . . . Total Robot Build Rating . | . . . . Part Schematics Acquired . | . . . . Parts Built . | . . . . Authchips . | . . . . Time . | . . . . Total Part Build Rating . | . . . . Parts Repaired 1 | . . 1 . Time 32 | . . 32 . Parts Recycled . | . . . . Recycled Matter 144 | . . 144 . Retrieved Matter 151 | . . 151 . Retrieved Components . | . . . . Parts Scanalyzed . | . . . . Part Schematics Acquired . | . . . . Parts Damaged . | . . . . Bothacking | -11 -10 -9 -9 ------------ Run | Yrd Mat Mat Sto Used RIF Installer . | . . . . Robots Hacked . | . . . . Non-combat . | . . . . Combat . | . . . . Robot Hacks Applied . | . . . . Relay Couplers Released . | . . . . Fabnet Peak Effective % . | . . . . Robots Rewired . | . . . . Allies Hacked . | . . . . Hacks Repelled . | . . . . Allies | -11 -10 -9 -9 -------- Run | Yrd Mat Mat Sto Total Allies . | . . . . Largest Group . | . . . . Highest-Rated Group . | . . . . Highest-Rated Ally . | . . . . Total Orders . | . . . . Ally Attacks . | . . . . Total Damage . | . . . . Kills . | . . . . Allies Corrupted . | . . . . Allies Melted . | . . . . Intel | -11 -10 -9 -9 ------- Run | Yrd Mat Mat Sto Robot Analysis Total . | . . . . Derelict Logs Recovered . | . . . . Drone Launches . | . . . . Drone Recoveries . | . . . . Exploration | -11 -10 -9 -9 ------------- Run | Yrd Mat Mat Sto Turns Passed 2038 | 169 789 790 290 Spaces Moved 1843 | 137 730 789 187 Core 17 | 15 2 . . Treads . | . . . . Legs 569 | 122 447 . . Wheels 629 | . . 442 187 Hover 628 | . 281 347 . Flight . | . . . . Fastest Speed 50 | 50 56 52 100 Average Speed 90 | 112 95 78 100 Slowest Speed 150 | 120 150 100 100 Overloaded Moves . | . . . . Propulsion Burnouts . | . . . . Robots Hopped . | . . . . Cave-ins Triggered . | . . . . Exploration Rate (%) 27 | 5 39 32 32 Regions Visited 3 Branch Regions 1 Pre-discovered Areas . | . . . . Known Exits Taken 1 | . . 1 . Unknown Exits Taken 2 | 1 1 . . Scrap Searched . | . . . . Spaces Dug . | . . . . Terrain Destroyed 8 | . 8 . . Melee . | . . . . Projectile . | . . . . AOE 8 | . 8 . . Terrain Rammed . | . . . . Walls Destroyed . | . . . . Machines Disabled . | . . . . Actions | -11 -10 -9 -9 --------- Run | Yrd Mat Mat Sto Total 2037 | 149 793 859 236 Wait . | . . . . Move 1840 | 136 729 788 187 Hop . | . . . . Pick Up 21 | 6 9 6 . Fast Attach 11 | 6 2 3 . Attach 15 | . 5 6 4 Detach 9 | . 7 2 . Swap 1 | . 1 . . Drop 14 | 1 9 4 . Fire 126 | . 31 50 45 Melee . | . . . . Ram . | . . . . Kick . | . . . . Crush . | . . . . Escape Stasis . | . . . . Rewire . | . . . . Trap . | . . . . Miscellaneous . | . . . . Route ------- -11/Scrapyard -10/Materials -9/Materials (discovered 3 exits: [*Min] / *Sto x2) -9/Storage History --------- Turn | Location | Event 22 | -11/Scrapyard | Discovered new exit (range 13) 170 | -11/Scrapyard | Entered Materials 310 | -10/Materials | Build established: Mutant 879 | -10/Materials | Discovered new exit (range 16) 959 | -10/Materials | Entered another Materials area 959 | -9/Materials | Evolved 2 slots: Propulsion x1, Utility x1 964 | -9/Materials | Discovered new exit (range 11) 971 | -9/Materials | Identified exit to Storage 1030 | -9/Materials | Discovered exit to Storage (range 9) 1251 | -9/Materials | Discovered new exit (range 9) 1641 | -9/Materials | Repaired Beam Rifle 1749 | -9/Materials | Entered Storage 1883 | -9/Storage | Core integrity fell below 50% 1898 | -9/Storage | Lost 4 parts (2n2u) 2013 | -9/Storage | Core integrity fell below 20% 2039 | -9/Storage | Destroyed by G-34 Mercenary with Small Laser Last Messages --------------- Imp. Light Armor Plating destroyed. Y-45 Defender heat short circuits Heat Sink. K-01 Serf cleans the Transfer Shaft. Lgt. Treads melted. Hvy. Assault Rifle melted. Imp. Ion Engine melted. Y-45 Defender destroyed. Critical hit (Burn: +37). K-01 Serf collects debris. Y-45 Defender destroyed. Imp. Ion Engine melted. Y-45 Defender destroyed. Y-45 Defender heat spikes uncontrollably. W-16 Scout destroyed. Heat Sink melted. Y-45 Defender destroyed. K-01 Serf collects debris. Backup Laser I destroyed. Imp. Light Armor Plating severed. Assault Rifle destroyed. Map ----- +----------------------------------------------------+ | #????????????????????????????????????????????? | | #?????????????????????????####???????????????? | | #????????????????????##??? ??#????????????? | | [#????????????????????? "" #????????????? | | ##?????????????????????# """ Y" #????????????? | | #??????????????????????# """ "" #????????????? | | #??????????????????????# """ #????????????? | | #??????????????????????? ?????????????? | | #????????????????????????! ????###???????? | | #????????????????????????? =???###T#######?? | | ###############+############/######*==%[ #?? | | =[%[%/!""" ##? | | =%* [ ^^ #####!"Y" "#? | | ! [%= ^^ #???#[![% T#? | | #+######+#######"T"#########+#####???#=""" """ "#? | | ???# ????#####?????????????????#!""" """ ##? | | ???# """""????????????????????????# """ """ #?? | | ??# """"" #??????????????????????# ### | | " ""??# """"" #?????????????????????#########+## | | " """?# ##???????????????????????????# | | " """?# """"" ?????????????????????????????# | | # """????????????????????????????????# ### | | ???# ???????????????????????????????????# #?## | | ## ???# ???????????????????????????????????# #??? | | ??#???# ???????######+###################### #?? | | ??????# ???????# @l # | | ???????????????# g % % + | | ???????????????# g r # " | | ???????????????######+####################### #??? | | ????????????????????????????????????????????# #??? | | ????????????????????????????????????????????? #??? | | ????????????????????????????????????????????? #??? | | ????????????????????????????????????????????? #??? | | ????????????????????????????????????????????? #??? | | ????????????????????????????????????????????? #??? | | ????????????????????????????????????????????? #??? | | ??????????????????????????????????????????????#??? | | ?????????????????????????????????????????????????? | | ?????????????????????????????????????????????????? | | ?????????????????????????????????????????????????? | | ?????????????????????????????????????????????????? | | ?????????????????????????????????????????????????? | | ?????????????????????????????????????????????????? | | ?????????????????????????????????????????????????? | | ?????????????????????????????????????????????????? | | ?????????????????????????????????????????????????? | | ?????????????????????????????????????????????????? | | ?????????????????????????????????????????????????? | | ?????????????????????????????????????????????????? | | ?????????????????????????????????????????????????? | +----------------------------------------------------+ Best States ------------- Heat Dissipation 35 Energy Generation 10 Energy Capacity 375 Matter Stores 300 Matter Capacity 300 Sight Range 16 Terrain Scan Density 10 Armor Coverage 300 Resistance: KI 20 Resistance: TH 20 Resistance: EX 20 Resistance: EM 20 Resistance: I 20 Resistance: S 20 Resistance: P 20 Evasion (%) 55 Offensive Hacking 10 Item Schematics ----------------- None Robot Schematics ------------------ None Fabricated ------------ Nothing Alien Tech Used ----------------- None Achievements -------------- None Challenges ------------ None Game ------ Seed FactoryReflectiveClaws Manual? 0 Play Time 00:29:07 Cumulative 1.8 hours Start 2024.03.31 @ 17:42:19 End 2024.03.31 @ 18:09:25 Sessions 1 Manual Loads 0 Difficulty Adventurer Special Mode None Game No. 4 Rogue 0 Adventurer 4 Explorer 0 Win Type - Total 0 Types 0/0/0/0/0/0/0/0/0 Lore% 0 Gallery% 5 Achievement% 6 Wizard Run 0 Options --------- Layout 1 ASCII 0 Keyboard 1 Movement Vi Keybinds 0 Fullscreen 1 Font 24/X11 Map View 25x17 Zoom Use 100% Tactical HUD 0 Map Filters NONE Filters NONE Steam 1 RUN: cb8caff7-a650-489e-a48b-ceaabec9335c